fUST/lending_fUST_20250623
["ID","MTS","AMOUNT","RATE_DAILY","PERIOD"]
[367019172,1750618253139,-846.39664074,0.00027,30]
[367019173,1750618253186,-213.59462818,0.00027,10]
[367019174,1750618253234,-213.59462818,0.00027,30]
[367019175,1750618253285,-846.39664074,0.00028,10]
[367019176,1750618253332,-846.39664074,0.00028,10]
[367019177,1750618253380,-323.06,0.00028348,30]
[367019178,1750618253429,-646.12,0.00029698,30]
[367019179,1750618253480,-969.18,0.00031048,30]
[367019180,1750618253528,-153.0,0.00031637,30]
[367019181,1750618253575,-306.1887716,0.00031637,30]
[367019182,1750618253621,-153.0,0.00031637,30]
[367019183,1750618253668,-153.0,0.00031637,30]
[367019184,1750618253715,-153.0,0.00031637,30]
[367019185,1750618253762,-1149.2995514,0.00031637,30]
[367019186,1750618253810,-153.0,0.00031637,30]
[367019187,1750618253857,-153.0,0.00031637,30]
[367019188,1750618253905,-153.0,0.00031637,30]
[367019189,1750618253951,-1292.23,0.00032398,30]
[367019190,1750618254000,-85835.99,0.000336,14]
[367019191,1750618254046,-1615.29,0.00033748,30]
[367019192,1750618254093,-1938.35,0.00035098,30]
[367019193,1750618254141,-2261.41,0.00036448,30]
[367019194,1750618254186,-2584.47,0.00037798,30]
[367019195,1750618254233,-2907.53,0.00039148,30]
[367019196,1750618254280,-388.24738923,0.00039244,15]
[367019197,1750618254326,-388.24738923,0.00039681,15]
[367019198,1750618254371,-388.24738923,0.00039856,15]
[367019199,1750618254418,-85835.99,0.0004,14]
[367019200,1750618254465,-388.24738923,0.00040113,15]
[367019201,1750618254513,-388.24738926,0.00040411,15]
[367019202,1750618254565,-3230.59,0.00040498,30]
[367019203,1750618254613,-460.0,0.00041095,120]
[367019204,1750618254660,-460.0,0.00041095,120]
[367019205,1750618254709,-568.61,0.00041095,120]
[367019206,1750618254758,-484.12,0.00041095,120]
[367019207,1750618254808,-460.0,0.00041095,120]
[367019208,1750618254859,-460.0,0.00041095,120]
[367019209,1750618254909,-460.0,0.00041095,120]
[367019210,1750618254960,-460.0,0.00041095,120]
[367019211,1750618255011,-500.0,0.00041095,120]
[367019212,1750618255062,-460.0,0.00041095,120]
[367019213,1750618255111,-460.0,0.00041095,120]
[367019214,1750618255160,-460.0,0.00041095,120]
[367019215,1750618255208,-554.76,0.00041095,120]
[367019216,1750618255256,-460.0,0.00041095,120]
[367019217,1750618255302,-460.0,0.00041095,120]
[367019218,1750618255347,-460.0,0.00041095,120]
[367019219,1750618255397,-460.0,0.00041095,120]
[367019220,1750618255445,-494.79,0.00041095,120]
[367019221,1750618255494,-460.0,0.00041095,120]
[367019222,1750618255570,-460.0,0.00041095,120]
[367019223,1750618255619,-460.0,0.00041095,120]
[367019224,1750618255668,-460.0,0.00041095,120]
[367019225,1750618255720,-460.0,0.00041095,120]
[367019226,1750618255768,-191.38634005,0.00041095,120]
[367019227,1750618255819,-460.0,0.00041095,120]
[367019228,1750618255869,-2426.2,0.00041095,120]
[367019229,1750618255918,-460.0,0.00041095,120]
[367019230,1750618255966,-1143.89,0.00041095,120]
[367019231,1750618256011,-442.28105359,0.00041095,120]
[367019232,1750618256060,-460.0,0.00041095,120]
[367019233,1750618256108,-460.0,0.00041095,120]
[367019234,1750618256155,-1046.85,0.00041095,120]
[367019235,1750618256203,-460.0,0.00041095,120]
[367019236,1750618256250,-460.0,0.00041095,120]
[367019237,1750618256295,-460.0,0.00041095,120]
[367019238,1750618256570,-925.84,0.00041095,120]
[367019239,1750618256619,-597.73,0.00041095,120]
[367019240,1750618256666,-460.0,0.00041095,120]
[367019241,1750618256714,-460.0,0.00041095,120]
[367019242,1750618256763,-11265.91,0.00041095,120]
[367019243,1750618256811,-432.99116479,0.00041095,120]
[367019244,1750618256857,-460.0,0.00041095,120]
[367019245,1750618256904,-460.0,0.00041095,120]
[367019246,1750618256949,-460.0,0.00041095,120]
[367019247,1750618257011,-447.00879276,0.00041095,120]
[367019248,1750618257062,-6160.7,0.00041095,120]
[367019249,1750618257111,-460.0,0.00041095,120]
[367019250,1750618257159,-460.0,0.00041095,120]
[367019251,1750618257210,-1189.67,0.00041095,120]
[367019252,1750618257260,-460.0,0.00041095,120]
[367019253,1750618257311,-1249.6,0.00041095,120]
[367019254,1750618257358,-460.0,0.00041095,120]
[367019255,1750618257406,-470.58,0.00041095,120]
[367019256,1750618257453,-1798.04,0.00041095,30]
[367019257,1750618257502,-3579.12,0.00041095,120]
[367019258,1750618257552,-460.0,0.00041095,120]
[367019259,1750618257602,-390.98817973,0.00041095,120]
[367019260,1750618257651,-10666.48,0.00041095,120]
[367019261,1750618257699,-460.0,0.00041095,120]
[367019262,1750618257751,-1777.05,0.00041095,120]
[367019263,1750618257798,-582.51,0.00041095,120]
[367019264,1750618257846,-460.0,0.00041095,120]
[367019265,1750618257893,-460.0,0.00041095,120]
[367019266,1750618257940,-1267.32,0.00041095,120]
[367019267,1750618257987,-544.23,0.00041095,120]
[367019268,1750618258038,-460.0,0.00041095,120]
[367019269,1750618258084,-430.52896104,0.00041095,120]
[367019270,1750618258129,-460.0,0.00041095,120]
[367019271,1750618258179,-460.0,0.00041095,120]
[367019272,1750618258226,-460.0,0.00041095,120]
[367019273,1750618258272,-460.0,0.00041095,120]
[367019274,1750618258318,-485.02,0.00041095,120]
[367019275,1750618258366,-2652.41,0.00041095,120]
[367019276,1750618258415,-460.0,0.00041095,120]
[367019277,1750618258461,-460.0,0.00041095,120]
[367019278,1750618258507,-460.0,0.00041095,120]
[367019279,1750618258556,-579.35,0.00041095,120]
[367019280,1750618258605,-500.0,0.00041095,120]
[367019281,1750618258652,-500.0,0.00041095,120]
[367019282,1750618258697,-724.13,0.00041095,120]
[367019283,1750618258744,-460.0,0.00041095,120]
[367019284,1750618258794,-460.0,0.00041095,120]
[367019285,1750618258841,-460.0,0.00041095,120]
[367019286,1750618258889,-475.23,0.00041095,120]
[367019287,1750618258936,-3283.97,0.00041095,120]
[367019288,1750618258981,-460.0,0.00041095,120]
[367019289,1750618259026,-460.0,0.00041095,120]
[367019290,1750618259075,-460.0,0.00041095,120]
[367019291,1750618259120,-233.91634502,0.00041095,120]
[367019292,1750618259166,-8136.01,0.00041095,120]
[367019293,1750618259212,-1594.18,0.00041095,120]
[367019294,1750618259258,-460.0,0.00041095,120]
[367019295,1750618259304,-438.56497545,0.00041369,120]
[367019296,1750618259349,-460.0,0.00041369,120]
[367019297,1750618259394,-484.12,0.00041369,120]
[367019298,1750618259439,-460.0,0.00041369,120]
[367019299,1750618259484,-460.0,0.00041369,120]
[367019300,1750618259529,-460.0,0.00041369,120]
[367019301,1750618259576,-500.0,0.00041369,120]
[367019302,1750618259625,-460.0,0.00041369,120]
[367019303,1750618259671,-460.0,0.00041369,120]
[367019304,1750618259721,-460.0,0.00041369,120]
[367019305,1750618259768,-554.76,0.00041369,120]
[367019306,1750618259814,-460.0,0.00041369,120]
[367019307,1750618259860,-494.79,0.00041369,120]
[367019308,1750618259906,-435.24141904,0.00041369,120]
[367019309,1750618259951,-460.0,0.00041369,120]
[367019310,1750618259996,-460.0,0.00041369,120]
[367019311,1750618260047,-403.57654894,0.00041369,120]
[367019312,1750618260094,-460.0,0.00041369,120]
[367019313,1750618260142,-460.0,0.00041369,120]
[367019314,1750618260192,-2426.2,0.00041369,120]
[367019315,1750618260246,-460.0,0.00041369,120]
[367019316,1750618260293,-1143.89,0.00041369,120]
[367019317,1750618260338,-460.0,0.00041369,120]
[367019318,1750618260383,-460.0,0.00041369,120]
[367019319,1750618260427,-1046.85,0.00041369,120]
[367019320,1750618260474,-514.64,0.00041369,120]
[367019321,1750618260520,-460.0,0.00041369,120]
[367019322,1750618260569,-460.0,0.00041369,120]
[367019323,1750618260618,-925.84,0.00041369,120]
[367019324,1750618260665,-597.73,0.00041369,120]
[367019325,1750618260712,-460.0,0.00041369,120]
[367019326,1750618260759,-11265.91,0.00041369,120]
[367019327,1750618260806,-460.0,0.00041369,120]
[367019328,1750618260854,-6160.7,0.00041369,120]
[367019329,1750618260899,-460.0,0.00041369,120]
[367019330,1750618260954,-460.0,0.00041369,120]
[367019331,1750618261003,-1189.67,0.00041369,120]
[367019332,1750618261048,-460.0,0.00041369,120]
[367019333,1750618261094,-1249.6,0.00041369,120]
[367019334,1750618261141,-460.0,0.00041369,120]
[367019335,1750618261189,-470.58,0.00041369,120]
[367019336,1750618261235,-1798.04,0.00041369,30]
[367019337,1750618261284,-3579.12,0.00041369,120]
[367019338,1750618261338,-460.0,0.00041369,120]
[367019339,1750618261395,-10666.48,0.00041369,120]
[367019340,1750618261452,-460.0,0.00041369,120]
[367019341,1750618261503,-1777.05,0.00041369,120]
[367019342,1750618261560,-582.51,0.00041369,120]
[367019343,1750618261614,-460.0,0.00041369,120]
[367019344,1750618261667,-460.0,0.00041369,120]
[367019345,1750618261722,-1267.32,0.00041369,120]
[367019346,1750618261777,-544.23,0.00041369,120]
[367019347,1750618261833,-460.0,0.00041369,120]
[367019348,1750618261885,-460.0,0.00041369,120]
[367019349,1750618261937,-460.0,0.00041369,120]
[367019350,1750618262005,-460.0,0.00041369,120]
[367019351,1750618262061,-236.28926166,0.00041369,120]
[367019352,1750618262118,-485.02,0.00041369,120]
[367019353,1750618262176,-2652.41,0.00041369,120]
[367019354,1750618262229,-460.0,0.00041369,120]
[367019355,1750618262290,-460.0,0.00041369,120]
[367019356,1750618262341,-460.0,0.00041369,120]
[367019357,1750618262396,-579.35,0.00041369,120]
[367019358,1750618262453,-724.13,0.00041369,120]
[367019359,1750618262510,-460.0,0.00041369,120]
[367019360,1750618262572,-460.0,0.00041369,120]
[367019361,1750618262628,-460.0,0.00041369,120]
[367019362,1750618262681,-475.23,0.00041369,120]
[367019363,1750618262731,-3283.97,0.00041369,120]
[367019364,1750618262783,-460.0,0.00041369,120]
[367019365,1750618262838,-460.0,0.00041369,120]
[367019366,1750618262894,-460.0,0.00041369,120]
[367019367,1750618262946,-8136.01,0.00041369,120]
[367019368,1750618262997,-1594.18,0.00041369,120]
[367019369,1750618263056,-460.0,0.00041643,120]
[367019370,1750618263109,-484.12,0.00041643,120]
[367019371,1750618263166,-603.32,0.00041643,120]
[367019372,1750618263217,-460.0,0.00041643,120]
[367019373,1750618263269,-460.0,0.00041643,120]
[367019374,1750618263324,-460.0,0.00041643,120]
[367019375,1750618263381,-172.28,0.00041643,120]
[367019376,1750618263435,-347.71449881,0.00041643,120]
[367019377,1750618263488,-554.76,0.00041643,120]
[367019378,1750618263551,-460.0,0.00041643,120]
[367019379,1750618263607,-460.0,0.00041643,120]
[367019380,1750618263664,-494.79,0.00041643,120]
[367019381,1750618263719,-368.15526215,0.00041643,120]
[367019382,1750618263775,-460.0,0.00041643,120]
[367019383,1750618263834,-460.0,0.00041643,120]
[367019384,1750618263890,-2426.2,0.00041643,120]
[367019385,1750618263949,-1143.89,0.00041643,120]
[367019386,1750618264002,-460.0,0.00041643,120]
[367019387,1750618264051,-460.0,0.00041643,120]
[367019388,1750618264100,-1046.85,0.00041643,120]
[367019389,1750618264151,-460.0,0.00041643,120]
[367019390,1750618264201,-460.0,0.00041643,120]
[367019391,1750618264251,-925.84,0.00041643,120]
[367019392,1750618264300,-597.73,0.00041643,120]
[367019393,1750618264350,-460.0,0.00041643,120]
[367019394,1750618264404,-11265.91,0.00041643,120]
[367019395,1750618264457,-460.0,0.00041643,120]
[367019396,1750618264510,-6160.7,0.00041643,120]
[367019397,1750618264566,-460.0,0.00041643,120]
[367019398,1750618264618,-406.13125955,0.00041643,120]
[367019399,1750618265047,-1189.67,0.00041643,120]
[367019400,1750618265134,-460.0,0.00041643,120]
[367019401,1750618265192,-435.83922637,0.00041643,120]
[367019402,1750618265246,-1798.04,0.00041643,30]
[367019403,1750618265298,-470.58,0.00041643,120]
[367019404,1750618265349,-1249.6,0.00041643,120]
[367019405,1750618265395,-3579.12,0.00041643,120]
[367019406,1750618265451,-435.45391066,0.00041643,120]
[367019407,1750618265532,-10666.48,0.00041643,120]
[367019408,1750618265599,-460.0,0.00041643,120]
[367019409,1750618265666,-1777.05,0.00041643,120]
[367019410,1750618265737,-582.51,0.00041643,120]
[367019411,1750618265808,-213.35040464,0.00041643,120]
[367019412,1750618265857,-460.0,0.00041643,120]
[367019413,1750618265912,-1267.32,0.00041643,120]
[367019414,1750618265965,-544.23,0.00041643,120]
[367019415,1750618266011,-460.0,0.00041643,120]
[367019416,1750618266066,-460.0,0.00041643,120]
[367019417,1750618266112,-460.0,0.00041643,120]
[367019418,1750618266157,-460.0,0.00041643,120]
[367019419,1750618266202,-485.02,0.00041643,120]
[367019420,1750618266246,-2652.41,0.00041643,120]
[367019421,1750618266290,-232.69032297,0.00041643,120]
[367019422,1750618266334,-460.0,0.00041643,120]
[367019423,1750618266380,-460.0,0.00041643,120]
[367019424,1750618266427,-579.35,0.00041643,120]
[367019425,1750618266476,-724.13,0.00041643,120]
[367019426,1750618266525,-460.0,0.00041643,120]
[367019427,1750618266573,-460.0,0.00041643,120]
[367019428,1750618266620,-475.23,0.00041643,120]
[367019429,1750618266668,-3283.97,0.00041643,120]
[367019430,1750618266717,-460.0,0.00041643,120]
[367019431,1750618266764,-460.0,0.00041643,120]
[367019432,1750618266811,-8136.01,0.00041643,120]
[367019433,1750618266858,-1594.18,0.00041643,120]
[367019434,1750618266904,-25000.0,0.00041916,120]
[367019435,1750618266951,-11238.83395082,0.00041916,120]
[367019436,1750618266996,-151.0,0.00041916,120]
[367019437,1750618267046,-6818.12857846,0.00041917,120]
[367019438,1750618267094,-856.64,0.00041917,120]
[367019439,1750618267143,-460.0,0.00041917,120]
[367019440,1750618267192,-460.0,0.00041917,120]
[367019441,1750618267238,-460.0,0.00041917,120]
[367019442,1750618267283,-493.28,0.00041917,120]
[367019443,1750618267327,-547.9,0.00041917,120]
[367019444,1750618267376,-460.0,0.00041917,120]
[367019445,1750618267417,-460.0,0.00041917,120]
[367019446,1750618267463,-577.01,0.00041917,120]
[367019447,1750618267508,-460.0,0.00041917,120]
[367019448,1750618267559,-460.0,0.00041917,120]
[367019449,1750618267605,-460.0,0.00041917,120]
[367019450,1750618267652,-752.46,0.00041917,120]
[367019451,1750618267699,-580.34,0.00041917,120]
[367019452,1750618267746,-762.42,0.00041917,120]
[367019453,1750618267797,-460.0,0.00041917,120]
[367019454,1750618267845,-460.0,0.00041917,120]
[367019455,1750618267892,-1076.55,0.00041917,120]
[367019456,1750618267938,-480.91983731,0.00041917,120]
[367019457,1750618267987,-460.0,0.00041917,120]
[367019458,1750618268037,-3944.88,0.00041917,120]
[367019459,1750618268084,-460.0,0.00041917,120]
[367019460,1750618268130,-460.0,0.00041917,120]
[367019461,1750618268175,-500.0,0.00041917,120]
[367019462,1750618268220,-2388.71,0.00041917,120]
[367019463,1750618268266,-373.0279874,0.00041917,120]
[367019464,1750618268312,-460.0,0.00041917,120]
[367019465,1750618268356,-977.24,0.00041917,120]
[367019466,1750618268402,-1783.95,0.00041917,120]
[367019467,1750618268448,-8894.79,0.00041917,120]
[367019468,1750618268492,-1760.96,0.00041917,120]
[367019469,1750618268538,-460.0,0.00041917,120]
[367019470,1750618268585,-460.0,0.00041917,120]
[367019471,1750618268630,-460.0,0.00041917,120]
[367019472,1750618268675,-460.0,0.00041917,120]
[367019473,1750618268717,-456.77037317,0.00041917,120]
[367019476,1750618268765,-4981.75,0.00041917,120]
[367019477,1750618268813,-460.0,0.00041917,120]
[367019480,1750618268860,-460.0,0.00041917,120]
[367019481,1750618268910,-2867.12,0.00041917,120]
[367019484,1750618268957,-586.65,0.00041917,120]
[367019485,1750618269004,-460.0,0.00041917,120]
[367019487,1750618269051,-1409.36,0.00041917,120]
[367019489,1750618269096,-440.0,0.00041917,120]
[367019490,1750618269141,-471.05,0.00041917,120]
[367019492,1750618269183,-633.38,0.00041917,120]
[367019494,1750618269225,-460.0,0.00041917,120]
[367019496,1750618269265,-460.0,0.00041917,120]
[367019499,1750618269310,-460.0,0.00041917,120]
[367019501,1750618269363,-220.93,0.00041917,120]
[367019502,1750618269433,-460.0,0.00041917,120]
[367019505,1750618269505,-192.80543527,0.00041917,120]
[367019506,1750618269579,-460.0,0.00041917,120]
[367019511,1750618269772,-2000.81,0.00041917,120]
[367019513,1750618269818,-688.84,0.00041917,120]
[367019515,1750618269859,-460.0,0.00041917,120]
[367019517,1750618269900,-460.0,0.00041917,120]
[367019520,1750618269944,-482.19,0.00041917,120]
[367019521,1750618269990,-460.0,0.00041917,120]
[367019524,1750618270035,-484.12,0.00041917,120]
[367019526,1750618270082,-460.0,0.00041917,120]
[367019528,1750618270128,-554.76,0.00041917,120]
[367019530,1750618270174,-460.0,0.00041917,120]
[367019531,1750618270220,-460.0,0.00041917,120]
[367019533,1750618270267,-494.79,0.00041917,120]
[367019536,1750618270313,-460.0,0.00041917,120]
[367019538,1750618270360,-460.0,0.00041917,120]
[367019539,1750618270407,-2426.2,0.00041917,120]
[367019542,1750618270453,-1143.89,0.00041917,120]
[367019543,1750618270498,-460.0,0.00041917,120]
[367019545,1750618270547,-460.0,0.00041917,120]
[367019547,1750618270591,-1046.85,0.00041917,120]
[367019549,1750618270639,-460.0,0.00041917,120]
[367019552,1750618270686,-460.0,0.00041917,120]
[367019554,1750618270735,-925.84,0.00041917,120]
[367019555,1750618270788,-597.73,0.00041917,120]
[367019558,1750618270841,-11265.91,0.00041917,120]
[367019560,1750618270894,-460.0,0.00041917,120]
[367019562,1750618270946,-6160.7,0.00041917,120]
[367019564,1750618270995,-460.0,0.00041917,120]
[367019566,1750618271048,-1189.67,0.00041917,120]
[367019567,1750618271096,-1798.04,0.00041917,30]
[367019570,1750618271144,-470.58,0.00041917,120]
[367019571,1750618271192,-1249.6,0.00041917,120]
[367019573,1750618271240,-3579.12,0.00041917,120]
[367019575,1750618271290,-10666.48,0.00041917,120]
[367019577,1750618271340,-460.0,0.00041917,120]
[367019580,1750618271390,-460.0,0.00041917,120]
[367019582,1750618271437,-1777.05,0.00041917,120]
[367019584,1750618271485,-582.51,0.00041917,120]
[367019586,1750618271534,-460.0,0.00041917,120]
[367019587,1750618271584,-1267.32,0.00041917,120]
[367019590,1750618271636,-544.23,0.00041917,120]
[367019591,1750618271689,-460.0,0.00041917,120]
[367019593,1750618271742,-460.0,0.00041917,120]
[367019596,1750618271795,-460.0,0.00041917,120]
[367019598,1750618271847,-460.0,0.00041917,120]
[367019600,1750618271898,-485.02,0.00041917,120]
[367019602,1750618271952,-2652.41,0.00041917,120]
[367019603,1750618272002,-460.0,0.00041917,120]
[367019605,1750618272053,-460.0,0.00041917,120]
[367019607,1750618272104,-579.35,0.00041917,120]
[367019610,1750618272156,-724.13,0.00041917,120]
[367019612,1750618272207,-460.0,0.00041917,120]
[367019614,1750618272257,-460.0,0.00041917,120]
[367019616,1750618272307,-475.23,0.00041917,120]
[367019617,1750618272359,-3283.97,0.00041917,120]
[367019619,1750618272410,-460.0,0.00041917,120]
[367019622,1750618272461,-460.0,0.00041917,120]
[367019624,1750618272512,-8136.01,0.00041917,120]
[367019626,1750618272567,-1594.18,0.00041917,120]
[367019627,1750618272617,-2000.0,0.00042,120]
[367019629,1750618272668,-2000.0,0.00042,120]
[367019632,1750618272722,-500.0,0.00042033,30]
[367019634,1750618272774,-518.48,0.00042191,120]
[367019635,1750618272826,-460.0,0.00042191,120]
[367019637,1750618272873,-460.0,0.00042191,120]
[367019638,1750618272922,-460.0,0.00042191,120]
[367019639,1750618272966,-460.0,0.00042191,120]
[367019640,1750618273011,-460.0,0.00042191,120]
[367019641,1750618273054,-460.0,0.00042191,120]
[367019643,1750618273096,-460.0,0.00042191,120]
[367019645,1750618273135,-460.0,0.00042191,120]
[367019647,1750618273173,-460.0,0.00042191,120]
[367019648,1750618273214,-1226.97,0.00042191,120]
[367019650,1750618273262,-227.04285881,0.00042191,120]
[367019652,1750618273313,-460.0,0.00042191,120]
[367019655,1750618273364,-460.0,0.00042191,120]
[367019657,1750618273416,-460.0,0.00042191,120]
[367019659,1750618273469,-460.0,0.00042191,120]
[367019661,1750618273522,-460.0,0.00042191,120]
[367019663,1750618273579,-460.0,0.00042191,120]
[367019664,1750618273632,-460.0,0.00042191,120]
[367019667,1750618273691,-460.0,0.00042191,120]
[367019668,1750618273766,-460.0,0.00042191,120]
[367019671,1750618273842,-211.7247267,0.00042191,120]
[367019673,1750618273916,-460.0,0.00042191,120]
[367019675,1750618273986,-460.0,0.00042191,120]
[367019677,1750618274039,-460.0,0.00042191,120]
[367019679,1750618274088,-460.0,0.00042191,30]
[367019680,1750618274139,-460.0,0.00042191,120]
[367019682,1750618274192,-460.0,0.00042191,120]
[367019685,1750618274244,-153.6073564,0.00042191,120]
[367019687,1750618274297,-500.0,0.00042191,120]
[367019688,1750618274348,-460.0,0.00042191,120]
[367019691,1750618274399,-460.0,0.00042191,120]
[367019693,1750618274449,-460.0,0.00042191,120]
[367019694,1750618274498,-460.0,0.00042191,120]
[367019699,1750618274687,-460.0,0.00042191,120]
[367019701,1750618274735,-525.76873501,0.00042191,120]
[367019703,1750618274787,-692.24,0.00042191,120]
[367019706,1750618274840,-224.0612475,0.00042191,120]
[367019708,1750618274892,-460.0,0.00042191,120]
[367019710,1750618274942,-465.64973267,0.00042191,120]
[367019711,1750618274992,-460.0,0.00042191,120]
[367019714,1750618275046,-460.0,0.00042191,120]
[367019716,1750618275097,-460.0,0.00042191,120]
[367019717,1750618275148,-460.0,0.00042191,120]
[367019719,1750618275196,-460.0,0.00042191,120]
[367019721,1750618275246,-460.0,0.00042191,120]
[367019724,1750618275297,-460.0,0.00042191,120]
[367019725,1750618275346,-460.0,0.00042191,120]
[367019728,1750618275396,-460.0,0.00042191,120]
[367019730,1750618275448,-460.0,0.00042191,120]
[367019732,1750618275500,-555.51,0.00042191,120]
[367019733,1750618275552,-532.37,0.00042191,120]
[367019736,1750618275609,-370.0,0.00042191,120]
[367019737,1750618275663,-460.0,0.00042191,120]
[367019740,1750618275713,-460.0,0.00042191,30]
[367019742,1750618275765,-460.0,0.00042191,30]
[367019743,1750618275816,-460.0,0.00042191,120]
[367019745,1750618275867,-460.0,0.00042191,120]
[367019748,1750618275922,-460.0,0.00042191,120]
[367019750,1750618275975,-719.72,0.00042191,120]
[367019752,1750618276027,-311.5669097,0.00042191,120]
[367019753,1750618276078,-460.0,0.00042191,120]
[367019755,1750618276128,-1268.62,0.00042191,120]
[367019757,1750618276179,-460.0,0.00042191,120]
[367019760,1750618276233,-1850.65,0.00042191,120]
[367019762,1750618276285,-460.0,0.00042191,120]
[367019764,1750618276337,-460.0,0.00042191,120]
[367019766,1750618276390,-460.0,0.00042191,120]
[367019767,1750618276443,-460.0,0.00042191,120]
[367019769,1750618276496,-460.0,0.00042191,120]
[367019771,1750618276549,-339.6697,0.00042191,120]
[367019773,1750618276602,-179.69169212,0.00042191,120]
[367019775,1750618276655,-726.12,0.00042191,120]
[367019778,1750618276708,-924.87,0.00042191,120]
[367019779,1750618276762,-460.0,0.00042191,120]
[367019781,1750618276816,-460.0,0.00042191,120]
[367019783,1750618276868,-460.0,0.00042191,120]
[367019785,1750618276919,-340.05117822,0.00042191,120]
[367019787,1750618276966,-460.0,0.00042191,120]
[367019789,1750618277016,-1062.79,0.00042191,120]
[367019792,1750618277066,-575.61,0.00042191,120]
[367019794,1750618277115,-471.46,0.00042191,120]
[367019796,1750618277160,-460.0,0.00042191,120]
[367019798,1750618277210,-460.0,0.00042191,60]
[367019800,1750618277257,-460.0,0.00042191,120]
[367019801,1750618277307,-460.0,0.00042191,120]
[367019803,1750618277356,-460.0,0.00042191,120]
[367019806,1750618277406,-460.0,0.00042191,120]
[367019808,1750618277456,-460.0,0.00042191,120]
[367019810,1750618277508,-460.0,0.00042191,120]
[367019811,1750618277563,-460.0,0.00042191,120]
[367019813,1750618277612,-523.04,0.00042191,120]
[367019816,1750618277662,-460.0,0.00042191,120]
[367019818,1750618277716,-460.0,0.00042191,120]
[367019820,1750618277766,-460.0,0.00042191,120]
[367019821,1750618277814,-554.94,0.00042191,120]
[367019824,1750618277865,-531.81,0.00042191,120]
[367019826,1750618277912,-460.0,0.00042191,120]
[367019827,1750618277960,-460.0,0.00042191,120]
[367019830,1750618278010,-626.48,0.00042191,120]
[367019831,1750618278058,-460.0,0.00042191,120]
[367019834,1750618278108,-460.0,0.00042191,120]
[367019836,1750618278157,-371.05472376,0.00042191,120]
[367019837,1750618278206,-401.04899153,0.00042191,120]
[367019840,1750618278256,-460.0,0.00042191,120]
[367019841,1750618278308,-460.0,0.00042191,120]
[367019843,1750618278358,-460.0,0.00042191,120]
[367019846,1750618278408,-460.0,0.00042191,120]
[367019848,1750618278457,-460.0,0.00042191,120]
[367019849,1750618278502,-460.0,0.00042191,120]
[367019850,1750618278550,-190.71969621,0.00042191,120]
[367019851,1750618278596,-460.0,0.00042191,120]
[367019852,1750618278645,-460.0,0.00042191,120]
[367019853,1750618278696,-460.0,0.00042191,120]
[367019854,1750618278744,-460.0,0.00042191,120]
[367019856,1750618278794,-460.0,0.00042191,120]
[367019858,1750618278838,-460.0,0.00042191,120]
[367019860,1750618278882,-460.0,0.00042191,120]
[367019862,1750618278925,-460.0,0.00042191,120]
[367019864,1750618278967,-460.0,0.00042191,120]